[Event "Titled Tuesday Blitz February 07 Early 2023"]
[White "Balabayeva, Xeniya"]
[Black "Iskusnyh, Sergei"]
[WhiteFideId "13719688"]
[BlackFideId "4120027"]
[WhiteElo "2191"]
[BlackElo "2440"]
[Result "0-1"]
[Round "09"]
[TimeControl "180+2"]
[Date "2023.02.07"]
[WhiteClock "0:00:01"]
[BlackClock "0:00:42"]

1. e4 {[%clk 0:03:00]}  e6 {[%clk 0:02:58]} 2. d4 {[%clk 0:02:58]}  d5 {[%clk 0:02:56]} 3. Nd2 {[%clk 0:02:57]}  c5 {[%clk 0:02:51]} 4. Ngf3 {[%clk 0:02:55]}  cxd4 {[%clk 0:02:50]} 5. Nxd4 {[%clk 0:02:52]}  Nc6 {[%clk 0:02:49]} 6. Nxc6 {[%clk 0:02:42]}  bxc6 {[%clk 0:02:48]} 7. Bd3 {[%clk 0:02:42]}  Nf6 {[%clk 0:02:34]} 8. Qe2 {[%clk 0:02:39]}  Be7 {[%clk 0:02:30]} 9. c3 {[%clk 0:02:34]}  a5 {[%clk 0:02:29]} 10. O-O {[%clk 0:02:24]}  Qb6 {[%clk 0:02:29]} 11. exd5 {[%clk 0:02:20]}  cxd5 {[%clk 0:02:27]} 12. Nf3 {[%clk 0:02:19]}  Ba6 {[%clk 0:02:26]} 13. Bxa6 {[%clk 0:02:16]}  Qxa6 {[%clk 0:02:25]} 14. Qxa6 {[%clk 0:01:41]}  Rxa6 {[%clk 0:02:26]} 15. Be3 {[%clk 0:01:41]}  O-O {[%clk 0:02:24]} 16. Rab1 {[%clk 0:01:34]}  Rc8 {[%clk 0:02:18]} 17. Rfc1 {[%clk 0:01:28]}  Ne4 {[%clk 0:02:15]} 18. Nd2 {[%clk 0:01:24]}  Nd6 {[%clk 0:02:13]} 19. b3 {[%clk 0:00:43]}  e5 {[%clk 0:01:55]} 20. Nf3 {[%clk 0:00:27]}  f6 {[%clk 0:01:54]} 21. Rd1 {[%clk 0:00:23]}  Ne4 {[%clk 0:01:52]} 22. Rbc1 {[%clk 0:00:18]}  Nxc3 {[%clk 0:01:46]} 23. Rc2 {[%clk 0:00:15]}  Rac6 {[%clk 0:01:42]} 24. Re1 {[%clk 0:00:12]}  Bb4 {[%clk 0:01:36]} 25. Kf1 {[%clk 0:00:12]}  d4 {[%clk 0:01:33]} 26. Bd2 {[%clk 0:00:11]}  Nd5 {[%clk 0:01:30]} 27. Rxc6 {[%clk 0:00:08]}  Rxc6 {[%clk 0:01:31]} 28. Bxb4 {[%clk 0:00:08]}  axb4 {[%clk 0:01:27]} 29. Ra1 {[%clk 0:00:04]}  Ra6 {[%clk 0:01:21]} 30. Ne1 {[%clk 0:00:03]}  Nc3 {[%clk 0:01:15]} 31. Nd3 {[%clk 0:00:02]}  Rxa2 {[%clk 0:01:14]} 32. Rxa2 {[%clk 0:00:01]}  Nxa2 {[%clk 0:01:14]} 33. Ke2 {[%clk 0:00:02]}  Kf7 {[%clk 0:01:06]} 34. Nc5 {[%clk 0:00:01]}  Ke7 {[%clk 0:01:02]} 35. Kd3 {[%clk 0:00:02]}  Kd6 {[%clk 0:01:02]} 36. Kc4 {[%clk 0:00:02]}  h5 {[%clk 0:00:51]} 37. Nd3 {[%clk 0:00:01]}  g5 {[%clk 0:00:42]} 0-1


[Site "https://www.chess.com"]

[Event "Titled Tuesday Blitz February 07 Early 2023"]
[White "Kuderinov, Kirill"]
[Black "Turzo, Attila"]
[WhiteFideId "13701568"]
[BlackFideId "704954"]
[WhiteElo "2404"]
[BlackElo "2279"]
[Result "1/2-1/2"]
[Round "09"]
[TimeControl "180+2"]
[Date "2023.02.07"]
[WhiteClock "0:00:06"]
[BlackClock "0:00:07"]

1. c4 {[%clk 0:03:00]}  Nf6 {[%clk 0:02:39]} 2. Nc3 {[%clk 0:03:00]}  g6 {[%clk 0:02:37]} 3. Nf3 {[%clk 0:02:58]}  d5 {[%clk 0:02:33]} 4. cxd5 {[%clk 0:02:58]}  Nxd5 {[%clk 0:02:34]} 5. e3 {[%clk 0:02:58]}  Bg7 {[%clk 0:02:33]} 6. d4 {[%clk 0:02:58]}  O-O {[%clk 0:02:32]} 7. Bc4 {[%clk 0:02:55]}  Nxc3 {[%clk 0:02:30]} 8. bxc3 {[%clk 0:02:55]}  b6 {[%clk 0:02:30]} 9. h4 {[%clk 0:02:53]}  h5 {[%clk 0:02:28]} 10. Qc2 {[%clk 0:02:40]}  Bf5 {[%clk 0:02:25]} 11. e4 {[%clk 0:02:38]}  Bc8 {[%clk 0:02:17]} 12. Be3 {[%clk 0:02:31]}  Ba6 {[%clk 0:02:12]} 13. Bxa6 {[%clk 0:02:26]}  Nxa6 {[%clk 0:02:12]} 14. e5 {[%clk 0:02:26]}  e6 {[%clk 0:02:05]} 15. g4 {[%clk 0:02:25]}  hxg4 {[%clk 0:02:03]} 16. Ng5 {[%clk 0:02:23]}  Qd5 {[%clk 0:01:51]} 17. Rh2 {[%clk 0:02:03]}  c5 {[%clk 0:01:41]} 18. h5 {[%clk 0:02:00]}  cxd4 {[%clk 0:01:40]} 19. cxd4 {[%clk 0:01:58]}  Rfc8 {[%clk 0:01:32]} 20. Qe2 {[%clk 0:01:55]}  Nb4 {[%clk 0:01:28]} 21. Kf1 {[%clk 0:01:55]}  gxh5 {[%clk 0:01:23]} 22. Rxh5 {[%clk 0:01:52]}  Qc4 {[%clk 0:01:19]} 23. Ne4 {[%clk 0:00:48]}  Qxe2+ {[%clk 0:01:11]} 24. Kxe2 {[%clk 0:00:49]}  Rc2+ {[%clk 0:01:11]} 25. Kf1 {[%clk 0:00:49]}  Rxa2 {[%clk 0:01:09]} 26. Rxa2 {[%clk 0:00:40]}  Nxa2 {[%clk 0:01:09]} 27. Rg5 {[%clk 0:00:40]}  Kf8 {[%clk 0:00:57]} 28. Rxg4 {[%clk 0:00:28]}  Nb4 {[%clk 0:00:57]} 29. Nd6 {[%clk 0:00:24]}  Nd5 {[%clk 0:00:49]} 30. Rg3 {[%clk 0:00:21]}  a5 {[%clk 0:00:45]} 31. Rf3 {[%clk 0:00:21]}  f5 {[%clk 0:00:41]} 32. exf6 {[%clk 0:00:20]}  Bxf6 {[%clk 0:00:41]} 33. Ne4 {[%clk 0:00:16]}  Kg7 {[%clk 0:00:38]} 34. Rg3+ {[%clk 0:00:15]}  Kf7 {[%clk 0:00:35]} 35. Rf3 {[%clk 0:00:15]}  Kg6 {[%clk 0:00:35]} 36. Rg3+ {[%clk 0:00:15]}  Kh7 {[%clk 0:00:29]} 37. Rh3+ {[%clk 0:00:14]}  Kg8 {[%clk 0:00:28]} 38. Rg3+ {[%clk 0:00:14]}  Bg7 {[%clk 0:00:21]} 39. Bh6 {[%clk 0:00:13]}  Ra7 {[%clk 0:00:22]} 40. Nd6 {[%clk 0:00:10]}  Kh7 {[%clk 0:00:19]} 41. Bxg7 {[%clk 0:00:10]}  Rxg7 {[%clk 0:00:20]} 42. Rh3+ {[%clk 0:00:11]}  Kg8 {[%clk 0:00:20]} 43. Rb3 {[%clk 0:00:11]}  a4 {[%clk 0:00:19]} 44. Ra3 {[%clk 0:00:10]}  Ra7 {[%clk 0:00:19]} 45. Ke2 {[%clk 0:00:10]}  Kf8 {[%clk 0:00:19]} 46. Kd3 {[%clk 0:00:09]}  Ra8 {[%clk 0:00:18]} 47. Kc4 {[%clk 0:00:08]}  Ke7 {[%clk 0:00:19]} 48. Ne4 {[%clk 0:00:08]}  Kd7 {[%clk 0:00:18]} 49. Kb5 {[%clk 0:00:08]}  Kc7 {[%clk 0:00:18]} 50. Rxa4 {[%clk 0:00:08]}  Rxa4 {[%clk 0:00:17]} 51. Kxa4 {[%clk 0:00:09]}  Kc6 {[%clk 0:00:17]} 52. Kb3 {[%clk 0:00:09]}  Kb5 {[%clk 0:00:16]} 53. Nd6+ {[%clk 0:00:08]}  Kc6 {[%clk 0:00:16]} 54. Nc4 {[%clk 0:00:09]}  Nf4 {[%clk 0:00:15]} 55. Ne3 {[%clk 0:00:09]}  Ne2 {[%clk 0:00:15]} 56. Kc4 {[%clk 0:00:09]}  b5+ {[%clk 0:00:14]} 57. Kd3 {[%clk 0:00:10]}  Nf4+ {[%clk 0:00:14]} 58. Ke4 {[%clk 0:00:10]}  Nh3 {[%clk 0:00:13]} 59. f4 {[%clk 0:00:08]}  b4 {[%clk 0:00:13]} 60. Ke5 {[%clk 0:00:07]}  Kd7 {[%clk 0:00:12]} 61. Nc4 {[%clk 0:00:04]}  b3 {[%clk 0:00:11]} 62. Nb6+ {[%clk 0:00:05]}  Ke7 {[%clk 0:00:11]} 63. Nc4 {[%clk 0:00:05]}  Nf2 {[%clk 0:00:11]} 64. d5 {[%clk 0:00:06]}  Nd3+ {[%clk 0:00:10]} 65. Kd4 {[%clk 0:00:06]}  exd5 {[%clk 0:00:09]} 66. Kxd5 {[%clk 0:00:05]}  Nxf4+ {[%clk 0:00:08]} 67. Ke4 {[%clk 0:00:05]}  Ne6 {[%clk 0:00:07]} 68. Kd3 {[%clk 0:00:04]}  Nc5+ {[%clk 0:00:07]} 69. Kc3 {[%clk 0:00:05]}  Ke6 {[%clk 0:00:08]} 70. Nd2 {[%clk 0:00:06]}  Kd5 {[%clk 0:00:07]} 71. Nxb3 {[%clk 0:00:06]} 1/2-1/2


[Site "https://www.chess.com"]

[Event "Titled Tuesday Blitz February 07 Early 2023"]
[White "Przybylski, Wojciech"]
[Black "Martynov, Pavel"]
[WhiteFideId "1117599"]
[BlackFideId "4101260"]
[WhiteElo "2321"]
[BlackElo "2414"]
[Result "0-1"]
[Round "09"]
[TimeControl "180+2"]
[Date "2023.02.07"]
[WhiteClock "0:00:02"]
[BlackClock "0:00:06"]

1. e4 {[%clk 0:03:00]}  c5 {[%clk 0:02:59]} 2. Nf3 {[%clk 0:02:59]}  e6 {[%clk 0:03:00]} 3. d4 {[%clk 0:02:56]}  cxd4 {[%clk 0:03:00]} 4. Nxd4 {[%clk 0:02:57]}  Nc6 {[%clk 0:03:01]} 5. Nc3 {[%clk 0:02:53]}  Qc7 {[%clk 0:03:01]} 6. g4 {[%clk 0:02:53]}  a6 {[%clk 0:02:58]} 7. Be3 {[%clk 0:02:48]}  b5 {[%clk 0:02:58]} 8. Nxc6 {[%clk 0:02:46]}  Qxc6 {[%clk 0:02:58]} 9. Qd2 {[%clk 0:02:45]}  Bb7 {[%clk 0:02:35]} 10. Ne2 {[%clk 0:02:29]}  Qxe4 {[%clk 0:02:03]} 11. Rg1 {[%clk 0:02:28]}  Qc6 {[%clk 0:01:44]} 12. Bg2 {[%clk 0:02:22]}  Qc7 {[%clk 0:01:34]} 13. Bxb7 {[%clk 0:02:16]}  Qxb7 {[%clk 0:01:34]} 14. O-O-O {[%clk 0:02:15]}  Nf6 {[%clk 0:01:30]} 15. Nf4 {[%clk 0:02:05]}  d5 {[%clk 0:01:28]} 16. g5 {[%clk 0:02:00]}  Ne4 {[%clk 0:01:28]} 17. Qe2 {[%clk 0:01:59]}  Be7 {[%clk 0:01:22]} 18. h4 {[%clk 0:01:57]}  Rc8 {[%clk 0:01:18]} 19. f3 {[%clk 0:01:56]}  Nd6 {[%clk 0:01:18]} 20. Bd4 {[%clk 0:01:53]}  Nf5 {[%clk 0:01:17]} 21. Be5 {[%clk 0:01:48]}  Bc5 {[%clk 0:01:05]} 22. Rge1 {[%clk 0:01:25]}  Be3+ {[%clk 0:00:53]} 23. Kb1 {[%clk 0:01:24]}  Bxf4 {[%clk 0:00:52]} 24. Bxf4 {[%clk 0:01:24]}  Rc4 {[%clk 0:00:46]} 25. Be5 {[%clk 0:01:14]}  Rxh4 {[%clk 0:00:41]} 26. f4 {[%clk 0:01:14]}  Qc6 {[%clk 0:00:35]} 27. Rd3 {[%clk 0:01:11]}  O-O {[%clk 0:00:31]} 28. Rc3 {[%clk 0:01:08]}  Qb6 {[%clk 0:00:29]} 29. Qg2 {[%clk 0:00:41]}  b4 {[%clk 0:00:25]} 30. Rd3 {[%clk 0:00:38]}  a5 {[%clk 0:00:24]} 31. Bf6 {[%clk 0:00:28]}  Rc8 {[%clk 0:00:20]} 32. g6 {[%clk 0:00:28]}  gxf6 {[%clk 0:00:17]} 33. gxf7+ {[%clk 0:00:24]}  Kxf7 {[%clk 0:00:17]} 34. Qe2 {[%clk 0:00:22]}  Rg8 {[%clk 0:00:14]} 35. Rd2 {[%clk 0:00:17]}  Rg1 {[%clk 0:00:15]} 36. Rdd1 {[%clk 0:00:13]}  Rhh1 {[%clk 0:00:16]} 37. Rxg1 {[%clk 0:00:07]}  Rxg1 {[%clk 0:00:15]} 38. Qh5+ {[%clk 0:00:08]}  Kf8 {[%clk 0:00:10]} 39. b3 {[%clk 0:00:03]}  Rxd1+ {[%clk 0:00:09]} 40. Qxd1 {[%clk 0:00:03]}  Qe3 {[%clk 0:00:07]} 41. Qf1 {[%clk 0:00:02]}  h5 {[%clk 0:00:06]} 0-1


[Site "https://www.chess.com"]

[Event "Titled Tuesday Blitz February 07 Early 2023"]
[White "The_Sherman_Variation"]
[Black "Pinheiro, Iung Alicio de O."]
[BlackFideId "2104350"]
[WhiteElo "2461"]
[BlackElo "2306"]
[Result "0-1"]
[Round "09"]
[TimeControl "180+2"]
[Date "2023.02.07"]
[WhiteClock "0:00:15"]
[BlackClock "0:00:22"]

1. d4 {[%clk 0:02:59]}  Nf6 {[%clk 0:02:59]} 2. g3 {[%clk 0:03:00]}  e6 {[%clk 0:02:53]} 3. Bg2 {[%clk 0:03:00]}  d5 {[%clk 0:02:54]} 4. Nf3 {[%clk 0:02:59]}  Be7 {[%clk 0:02:51]} 5. O-O {[%clk 0:03:00]}  O-O {[%clk 0:02:51]} 6. c4 {[%clk 0:02:59]}  dxc4 {[%clk 0:02:50]} 7. a4 {[%clk 0:02:56]}  b6 {[%clk 0:02:28]} 8. Ne5 {[%clk 0:02:47]}  Nd5 {[%clk 0:02:27]} 9. e4 {[%clk 0:02:43]}  Nf6 {[%clk 0:02:26]} 10. Nxc4 {[%clk 0:02:41]}  Bb7 {[%clk 0:02:19]} 11. Nc3 {[%clk 0:02:35]}  Na6 {[%clk 0:02:04]} 12. Re1 {[%clk 0:02:23]}  Nb4 {[%clk 0:02:02]} 13. Bf4 {[%clk 0:02:19]}  c5 {[%clk 0:01:45]} 14. d5 {[%clk 0:02:02]}  exd5 {[%clk 0:01:33]} 15. exd5 {[%clk 0:02:03]}  Nfxd5 {[%clk 0:01:27]} 16. Nxd5 {[%clk 0:02:04]}  Bxd5 {[%clk 0:01:11]} 17. Bxd5 {[%clk 0:01:28]}  Qxd5 {[%clk 0:01:08]} 18. Rxe7 {[%clk 0:01:05]}  Qxc4 {[%clk 0:01:07]} 19. Qg4 {[%clk 0:01:00]}  Nd5 {[%clk 0:00:56]} 20. Rd7 {[%clk 0:00:51]}  Nf6 {[%clk 0:00:54]} 21. Qf5 {[%clk 0:00:50]}  Nxd7 {[%clk 0:00:50]} 22. Qxd7 {[%clk 0:00:51]}  Rfd8 {[%clk 0:00:49]} 23. Qg4 {[%clk 0:00:49]}  Re8 {[%clk 0:00:32]} 24. h4 {[%clk 0:00:48]}  Rad8 {[%clk 0:00:32]} 25. h5 {[%clk 0:00:47]}  h6 {[%clk 0:00:31]} 26. Qf3 {[%clk 0:00:44]}  Qe4 {[%clk 0:00:31]} 27. Qc3 {[%clk 0:00:40]}  Rd3 {[%clk 0:00:30]} 28. Qc2 {[%clk 0:00:36]}  Red8 {[%clk 0:00:30]} 29. Qc1 {[%clk 0:00:34]}  Qe2 {[%clk 0:00:29]} 30. Qf1 {[%clk 0:00:16]}  Qf3 {[%clk 0:00:25]} 31. Kh2 {[%clk 0:00:15]}  Rd1 {[%clk 0:00:25]} 32. Rxd1 {[%clk 0:00:15]}  Rxd1 {[%clk 0:00:26]} 33. Qa6 {[%clk 0:00:15]}  Rh1# {[%clk 0:00:22]} 0-1


[Site "https://www.chess.com"]

[Event "Titled Tuesday Blitz February 07 Early 2023"]
[White "Adla, Diego"]
[Black "Bilan, Danila"]
[WhiteFideId "100072"]
[BlackFideId "24161918"]
[WhiteElo "2383"]
[BlackElo "2303"]
[Result "1-0"]
[Round "09"]
[TimeControl "180+2"]
[Date "2023.02.07"]
[WhiteClock "0:02:11"]
[BlackClock "0:00:02"]

1. Nf3 {[%clk 0:03:00]}  d5 {[%clk 0:02:54]} 2. c4 {[%clk 0:03:00]}  c6 {[%clk 0:02:54]} 3. cxd5 {[%clk 0:02:59]}  cxd5 {[%clk 0:02:53]} 4. d4 {[%clk 0:02:59]}  Nf6 {[%clk 0:02:53]} 5. Bf4 {[%clk 0:02:57]}  Nc6 {[%clk 0:02:52]} 6. Nc3 {[%clk 0:02:57]}  Bf5 {[%clk 0:02:52]} 7. e3 {[%clk 0:02:56]}  e6 {[%clk 0:02:52]} 8. Bb5 {[%clk 0:02:57]}  Nd7 {[%clk 0:02:49]} 9. Qa4 {[%clk 0:02:56]}  Rc8 {[%clk 0:02:42]} 10. Bxc6 {[%clk 0:02:54]}  Rxc6 {[%clk 0:02:43]} 11. Qxa7 {[%clk 0:02:55]}  Qc8 {[%clk 0:02:15]} 12. Qa5 {[%clk 0:02:53]}  b6 {[%clk 0:02:07]} 13. Qb5 {[%clk 0:02:48]}  Rxc3 {[%clk 0:01:24]} 14. bxc3 {[%clk 0:02:47]}  Qxc3+ {[%clk 0:01:25]} 15. Ke2 {[%clk 0:02:47]}  Qc2+ {[%clk 0:01:19]} 16. Nd2 {[%clk 0:02:46]}  Ba3 {[%clk 0:01:18]} 17. Qb3 {[%clk 0:02:41]}  O-O {[%clk 0:00:50]} 18. Qxc2 {[%clk 0:02:39]}  Bxc2 {[%clk 0:00:51]} 19. Nb3 {[%clk 0:02:36]}  Bb2 {[%clk 0:00:39]} 20. Rhc1 {[%clk 0:02:28]}  Bxc1 {[%clk 0:00:37]} 21. Rxc1 {[%clk 0:02:27]}  Bxb3 {[%clk 0:00:27]} 22. axb3 {[%clk 0:02:27]}  Ra8 {[%clk 0:00:20]} 23. Rc2 {[%clk 0:02:27]}  h6 {[%clk 0:00:19]} 24. Bd6 {[%clk 0:02:26]}  Nf6 {[%clk 0:00:15]} 25. f3 {[%clk 0:02:26]}  Ne8 {[%clk 0:00:12]} 26. Bb4 {[%clk 0:02:25]}  Nf6 {[%clk 0:00:11]} 27. Kd3 {[%clk 0:02:25]}  Kh7 {[%clk 0:00:09]} 28. h3 {[%clk 0:02:23]}  Kg6 {[%clk 0:00:09]} 29. g4 {[%clk 0:02:23]}  Ra1 {[%clk 0:00:09]} 30. h4 {[%clk 0:02:22]}  h5 {[%clk 0:00:08]} 31. g5 {[%clk 0:02:22]}  Nd7 {[%clk 0:00:04]} 32. Rc7 {[%clk 0:02:21]}  Nb8 {[%clk 0:00:04]} 33. Rb7 {[%clk 0:02:12]}  Nc6 {[%clk 0:00:03]} 34. Rxb6 {[%clk 0:02:12]}  Ne7 {[%clk 0:00:02]} 35. Bxe7 {[%clk 0:02:11]} 1-0


[Site "https://www.chess.com"]

[Event "Titled Tuesday Blitz February 07 Early 2023"]
[White "matenitian"]
[Black "Borgaonkar Akshay"]
[BlackFideId "25639110"]
[WhiteElo "2479"]
[BlackElo "1991"]
[Result "0-1"]
[Round "09"]
[TimeControl "180+2"]
[Date "2023.02.07"]
[WhiteClock "0:01:04"]
[BlackClock "0:01:41"]

1. e4 {[%clk 0:03:00]}  c5 {[%clk 0:02:58]} 2. Nc3 {[%clk 0:03:00]}  Nc6 {[%clk 0:02:58]} 3. g3 {[%clk 0:02:58]}  e6 {[%clk 0:02:58]} 4. Bg2 {[%clk 0:02:57]}  h5 {[%clk 0:02:59]} 5. Nf3 {[%clk 0:02:56]}  Qc7 {[%clk 0:02:58]} 6. O-O {[%clk 0:02:54]}  a6 {[%clk 0:02:58]} 7. a4 {[%clk 0:02:49]}  Nf6 {[%clk 0:02:57]} 8. h4 {[%clk 0:02:44]}  Ng4 {[%clk 0:02:56]} 9. d3 {[%clk 0:02:41]}  Bd6 {[%clk 0:02:52]} 10. Qe2 {[%clk 0:02:26]}  Nd4 {[%clk 0:02:50]} 11. Nxd4 {[%clk 0:02:22]}  cxd4 {[%clk 0:02:51]} 12. Nb1 {[%clk 0:02:19]}  Be7 {[%clk 0:02:36]} 13. Bf4 {[%clk 0:02:07]}  e5 {[%clk 0:02:35]} 14. Bc1 {[%clk 0:02:05]}  d6 {[%clk 0:02:34]} 15. Na3 {[%clk 0:02:05]}  Qd8 {[%clk 0:02:33]} 16. f3 {[%clk 0:02:03]}  Nh6 {[%clk 0:02:33]} 17. Nc4 {[%clk 0:02:02]}  Be6 {[%clk 0:02:32]} 18. b3 {[%clk 0:02:00]}  b5 {[%clk 0:02:27]} 19. axb5 {[%clk 0:01:51]}  axb5 {[%clk 0:02:28]} 20. Rxa8 {[%clk 0:01:50]}  Qxa8 {[%clk 0:02:29]} 21. Nd2 {[%clk 0:01:48]}  Qa2 {[%clk 0:02:22]} 22. Qd1 {[%clk 0:01:45]}  g5 {[%clk 0:02:19]} 23. hxg5 {[%clk 0:01:41]}  Bxg5 {[%clk 0:02:19]} 24. Rf2 {[%clk 0:01:41]}  Be3 {[%clk 0:02:19]} 25. Nf1 {[%clk 0:01:40]}  Bxf2+ {[%clk 0:02:18]} 26. Kxf2 {[%clk 0:01:41]}  h4 {[%clk 0:02:18]} 27. g4 {[%clk 0:01:41]}  Bxb3 {[%clk 0:02:13]} 28. Bh3 {[%clk 0:01:31]}  Bxc2 {[%clk 0:02:09]} 29. Qe2 {[%clk 0:01:31]}  Qb3 {[%clk 0:02:08]} 30. Bxh6 {[%clk 0:01:24]}  Rxh6 {[%clk 0:02:08]} 31. Qd2 {[%clk 0:01:25]}  Rg6 {[%clk 0:02:01]} 32. g5 {[%clk 0:01:15]}  Bxd3 {[%clk 0:01:58]} 33. Bf5 {[%clk 0:01:09]}  Bxf1 {[%clk 0:01:57]} 34. Qa5 {[%clk 0:01:05]}  Qe3+ {[%clk 0:01:40]} 35. Kxf1 {[%clk 0:01:05]}  Qxf3+ {[%clk 0:01:41]} 36. Ke1 {[%clk 0:01:04]}  Qc3+ {[%clk 0:01:41]} 0-1


[Site "https://www.chess.com"]

[Event "Titled Tuesday Blitz February 07 Early 2023"]
[White "Danielyan, Vahe"]
[Black "Kvaloy, Aksel Bu"]
[WhiteFideId "13304828"]
[BlackFideId "1528815"]
[WhiteElo "2346"]
[BlackElo "2321"]
[Result "0-1"]
[Round "09"]
[TimeControl "180+2"]
[Date "2023.02.07"]
[WhiteClock "0:00:02"]
[BlackClock "0:00:17"]

1. d4 {[%clk 0:03:00]}  Nf6 {[%clk 0:02:33]} 2. c4 {[%clk 0:02:59]}  e6 {[%clk 0:02:31]} 3. Nf3 {[%clk 0:02:50]}  d5 {[%clk 0:02:30]} 4. Nc3 {[%clk 0:02:47]}  Bb4 {[%clk 0:02:29]} 5. Bg5 {[%clk 0:02:39]}  h6 {[%clk 0:02:28]} 6. Bh4 {[%clk 0:02:36]}  dxc4 {[%clk 0:02:24]} 7. e3 {[%clk 0:02:19]}  b5 {[%clk 0:02:22]} 8. Be2 {[%clk 0:02:13]}  a6 {[%clk 0:02:21]} 9. O-O {[%clk 0:02:07]}  Bb7 {[%clk 0:02:14]} 10. a4 {[%clk 0:01:54]}  c6 {[%clk 0:02:12]} 11. Ne5 {[%clk 0:01:52]}  Nbd7 {[%clk 0:02:04]} 12. f4 {[%clk 0:01:19]}  Be7 {[%clk 0:01:56]} 13. Bf3 {[%clk 0:01:12]}  Qb6 {[%clk 0:01:53]} 14. a5 {[%clk 0:00:48]}  Qc7 {[%clk 0:01:50]} 15. Qe1 {[%clk 0:00:40]}  O-O {[%clk 0:01:43]} 16. g4 {[%clk 0:00:38]}  c5 {[%clk 0:01:40]} 17. g5 {[%clk 0:00:36]}  Nh7 {[%clk 0:01:28]} 18. g6 {[%clk 0:00:30]}  Nxe5 {[%clk 0:01:10]} 19. gxh7+ {[%clk 0:00:29]}  Kxh7 {[%clk 0:01:08]} 20. fxe5 {[%clk 0:00:30]}  cxd4 {[%clk 0:01:05]} 21. exd4 {[%clk 0:00:30]}  Rad8 {[%clk 0:01:04]} 22. Bxb7 {[%clk 0:00:26]}  Qxb7 {[%clk 0:01:05]} 23. Bxe7 {[%clk 0:00:26]}  Qxe7 {[%clk 0:01:05]} 24. Qe4+ {[%clk 0:00:23]}  Kh8 {[%clk 0:01:01]} 25. Kh1 {[%clk 0:00:24]}  b4 {[%clk 0:00:50]} 26. Ne2 {[%clk 0:00:23]}  Rd7 {[%clk 0:00:50]} 27. Nf4 {[%clk 0:00:21]}  Rfd8 {[%clk 0:00:50]} 28. Rad1 {[%clk 0:00:20]}  Kg8 {[%clk 0:00:49]} 29. Rf2 {[%clk 0:00:17]}  Qh4 {[%clk 0:00:49]} 30. Rg2 {[%clk 0:00:16]}  g5 {[%clk 0:00:47]} 31. d5 {[%clk 0:00:12]}  Rxd5 {[%clk 0:00:41]} 32. Rf1 {[%clk 0:00:07]}  Rd4 {[%clk 0:00:39]} 33. Qf3 {[%clk 0:00:05]}  Rxf4 {[%clk 0:00:30]} 34. Qe2 {[%clk 0:00:03]}  Rxf1+ {[%clk 0:00:23]} 35. Qxf1 {[%clk 0:00:03]}  Qh5 {[%clk 0:00:22]} 36. Re2 {[%clk 0:00:03]}  Qg4 {[%clk 0:00:19]} 37. Qf6 {[%clk 0:00:02]}  Rd1+ {[%clk 0:00:17]} 0-1


[Site "https://www.chess.com"]

[Event "Titled Tuesday Blitz February 07 Early 2023"]
[White "Karttunen, Mika"]
[Black "Toczek, Grzegorz"]
[WhiteFideId "502081"]
[BlackFideId "1106457"]
[WhiteElo "2490"]
[BlackElo "2260"]
[Result "0-1"]
[Round "09"]
[TimeControl "180+2"]
[Date "2023.02.07"]
[WhiteClock "0:00:02"]
[BlackClock "0:00:16"]

1. e4 {[%clk 0:03:00]}  d5 {[%clk 0:02:52]} 2. exd5 {[%clk 0:02:58]}  Qxd5 {[%clk 0:02:53]} 3. Nc3 {[%clk 0:02:57]}  Qd6 {[%clk 0:02:53]} 4. d4 {[%clk 0:02:56]}  Nf6 {[%clk 0:02:53]} 5. Nf3 {[%clk 0:02:56]}  a6 {[%clk 0:02:47]} 6. g3 {[%clk 0:02:52]}  Bg4 {[%clk 0:02:47]} 7. Bg2 {[%clk 0:02:36]}  Nbd7 {[%clk 0:02:38]} 8. h3 {[%clk 0:02:30]}  Bh5 {[%clk 0:02:38]} 9. Bf4 {[%clk 0:02:25]}  Qb6 {[%clk 0:02:38]} 10. O-O {[%clk 0:02:11]}  O-O-O {[%clk 0:02:23]} 11. Qe2 {[%clk 0:01:48]}  e6 {[%clk 0:02:21]} 12. Na4 {[%clk 0:01:31]}  Qa5 {[%clk 0:02:18]} 13. b3 {[%clk 0:01:29]}  Bd6 {[%clk 0:02:06]} 14. Bd2 {[%clk 0:01:25]}  Bb4 {[%clk 0:02:00]} 15. c3 {[%clk 0:01:24]}  Bd6 {[%clk 0:01:53]} 16. c4 {[%clk 0:01:19]}  Bb4 {[%clk 0:01:52]} 17. Bf4 {[%clk 0:01:10]}  Rhe8 {[%clk 0:01:38]} 18. g4 {[%clk 0:01:07]}  Bg6 {[%clk 0:01:38]} 19. Ne5 {[%clk 0:01:06]}  Nxe5 {[%clk 0:01:32]} 20. Bxe5 {[%clk 0:01:06]}  Nd7 {[%clk 0:01:18]} 21. Qf3 {[%clk 0:01:02]}  c6 {[%clk 0:01:10]} 22. Bg3 {[%clk 0:00:58]}  Nf6 {[%clk 0:01:06]} 23. a3 {[%clk 0:00:30]}  Bd6 {[%clk 0:01:05]} 24. Bxd6 {[%clk 0:00:26]}  Rxd6 {[%clk 0:01:06]} 25. c5 {[%clk 0:00:26]}  Rxd4 {[%clk 0:00:58]} 26. Nb6+ {[%clk 0:00:26]}  Kb8 {[%clk 0:00:53]} 27. b4 {[%clk 0:00:27]}  Qb5 {[%clk 0:00:49]} 28. Qg3+ {[%clk 0:00:26]}  e5 {[%clk 0:00:45]} 29. Rfd1 {[%clk 0:00:26]}  Rxd1+ {[%clk 0:00:41]} 30. Rxd1 {[%clk 0:00:25]}  Qe2 {[%clk 0:00:41]} 31. Rd6 {[%clk 0:00:24]}  Ne4 {[%clk 0:00:38]} 32. Bxe4 {[%clk 0:00:23]}  Bxe4 {[%clk 0:00:38]} 33. Kh2 {[%clk 0:00:12]}  Qf1 {[%clk 0:00:22]} 34. Qg1 {[%clk 0:00:11]}  Qe2 {[%clk 0:00:22]} 35. Rd7 {[%clk 0:00:07]}  Qf3 {[%clk 0:00:22]} 36. Nc4 {[%clk 0:00:05]}  h5 {[%clk 0:00:16]} 37. Nd6 {[%clk 0:00:05]}  hxg4 {[%clk 0:00:16]} 38. Rxb7+ {[%clk 0:00:06]}  Ka8 {[%clk 0:00:16]} 39. h4 {[%clk 0:00:02]}  Qh3# {[%clk 0:00:16]} 0-1


[Site "https://www.chess.com"]

[Event "Titled Tuesday Blitz February 07 Early 2023"]
[White "Kaplan, Avi Harrison"]
[Black "Cori T., Deysi"]
[WhiteFideId "30934559"]
[BlackFideId "3801934"]
[WhiteElo "2146"]
[BlackElo "2362"]
[Result "0-1"]
[Round "09"]
[TimeControl "180+2"]
[Date "2023.02.07"]
[WhiteClock "0:00:05"]
[BlackClock "0:02:33"]

1. a3 {[%clk 0:02:59]}  g6 {[%clk 0:02:59]} 2. c4 {[%clk 0:02:54]}  Bg7 {[%clk 0:02:59]} 3. e4 {[%clk 0:02:54]}  c5 {[%clk 0:02:59]} 4. f4 {[%clk 0:02:51]}  Nc6 {[%clk 0:02:59]} 5. Nc3 {[%clk 0:02:51]}  d6 {[%clk 0:02:59]} 6. d3 {[%clk 0:02:50]}  h5 {[%clk 0:02:58]} 7. h3 {[%clk 0:02:50]}  h4 {[%clk 0:02:58]} 8. Nf3 {[%clk 0:02:49]}  Nf6 {[%clk 0:02:58]} 9. Be2 {[%clk 0:02:46]}  Nh5 {[%clk 0:02:58]} 10. O-O {[%clk 0:02:33]}  Ng3 {[%clk 0:02:58]} 11. Re1 {[%clk 0:02:34]}  Nd4 {[%clk 0:02:58]} 12. Nxd4 {[%clk 0:02:26]}  Bxd4+ {[%clk 0:02:58]} 13. Kh2 {[%clk 0:02:23]}  e5 {[%clk 0:02:52]} 14. Qc2 {[%clk 0:02:00]}  exf4 {[%clk 0:02:45]} 15. Bxf4 {[%clk 0:01:58]}  g5 {[%clk 0:02:45]} 16. Bd2 {[%clk 0:01:15]}  Be5 {[%clk 0:02:44]} 17. Kg1 {[%clk 0:01:14]}  g4 {[%clk 0:02:43]} 18. Bxg4 {[%clk 0:00:57]}  Bxg4 {[%clk 0:02:42]} 19. hxg4 {[%clk 0:00:58]}  h3 {[%clk 0:02:42]} 20. Qa4+ {[%clk 0:00:58]}  Kf8 {[%clk 0:02:42]} 21. gxh3 {[%clk 0:00:51]}  Rxh3 {[%clk 0:02:41]} 22. g5 {[%clk 0:00:28]}  Qc8 {[%clk 0:02:36]} 23. Qd1 {[%clk 0:00:18]}  Rh1+ {[%clk 0:02:36]} 24. Kg2 {[%clk 0:00:18]}  Qh3+ {[%clk 0:02:36]} 25. Kf2 {[%clk 0:00:04]}  Rh2+ {[%clk 0:02:35]} 26. Ke3 {[%clk 0:00:05]}  Nf5# {[%clk 0:02:33]} 0-1


[Site "https://www.chess.com"]